{"text_format":"2","workbook":"xlsx","n_sheets":21,"sheets":["Final Site Design","Rehabilitation Areas","RA1","RA2","RA3","RA4","RA5","RA6","RA7","RA8","RA9","RA10","RA11","RA12","RA13","RA14","RA15","Rehabilitation Area Milestones","IA1","IA2","Improvement Area Milestones"],"not_rendered":{"charts":0,"images":2,"macros":0,"external_links":1,"defined_names":0,"comments":0,"pivot_tables":0},"unopened":[],"bounds":{"document_bytes":16777216,"sheet_cells":100000,"run_cost":"one","rows_first":2000,"rows_last":500,"rows_between":2000,"halvings":0,"cell_chars":16384,"cell_head_chars":4096},"cells_cut":0,"cells_raw":0,"read":"whole","date_system":"1900"}

{"sheet":"Final Site Design","index":0,"n_rows":0,"n_cols":0,"rows_kept":0,"cut":false,"hidden":false,"merged":[]}

{"sheet":"Rehabilitation Areas","index":1,"n_rows":0,"n_cols":0,"rows_kept":0,"cut":false,"hidden":false,"merged":[]}

{"sheet":"RA1","index":2,"n_rows":23,"n_cols":13,"rows_kept":23,"cut":false,"hidden":false,"merged":[[9,1,9,12],[0,0,0,12],[20,0,20,10],[21,0,21,10],[22,0,22,10],[4,0,4,3],[4,4,4,10],[5,0,5,3],[5,4,5,10],[19,0,19,10],[3,0,3,3],[3,4,3,10],[1,0,1,3],[1,4,1,10],[2,0,2,3],[2,4,2,10]]}
["Post-mining land uses (PMLU)"]
["Rehabilitation area",null,null,null,"RA1"]
["Relevant activities",null,null,null,"Waste Rock Emplacement (slope <16%)"]
["Total rehabilitation area size (ha)",null,null,null,246]
["Commencement of first milestone:\nRM1",null,null,null,"Rehabilitation of RA1 commenced prior to PRCP transition "]
["PMLU",null,null,null,"Mixed Use Open Woodland"]
["Date area is available","2022-12-10","2023-12-10","2024-12-10","2025-12-10","2026-12-10","2028-12-10","2032-12-10","2037-12-10","2044-12-10"]
["Cumulative area available (ha)",5.2,5.2,22.07,22.07,22.07,36.6,81.899999999999991,150.97,245.97]
["Milestone completed by","2023-12-10","2024-12-10","2025-12-10","2026-12-10","2028-12-10","2032-12-10","2037-12-10","2044-12-10","2049-12-10","2054-12-10","2059-12-10","2064-12-10"]
["Milestone Reference","Cumulative area achieved (ha)"]
["RM1",5.2,5.2,22.07,22.07,22.07,36.6,81.899999999999991,150.97,245.97]
["RM3",5.2,5.2,22.07,22.07,22.07,36.6,81.899999999999991,150.97,245.97]
["RM4",5.2,5.2,22.07,22.07,22.07,36.6,81.899999999999991,150.97,245.97]
["RM5",4.2,5.2,22.07,22.07,22.07,36.6,81.899999999999991,150.97,245.97]
["RM7",0,4.2,5.2,22.07,22.07,32.43,80.399999999999991,137.69999999999999,162.97,245.97]
["RM8",0,0,0,0,0,0,65.8,123.75,160.97,162.97,245.97]
["RM10",0,0,0,0,0,0,0,109.8,158.97,160.97,162.97,245.97]
[]
[]
["1) Insert new columns to the yellow table to include further rehabilitation milestone dates."]
["2) Insert new columns to the blue table to match rehabilitation milestone dates."]
["3) Insert new rows to the blue table to include additional rehabilitation milestone references."]
["4) Insert the relevant number in the \"Milestone reference\" column (i.e. RM1)."]

{"sheet":"RA2","index":3,"n_rows":23,"n_cols":13,"rows_kept":23,"cut":false,"hidden":false,"merged":[[5,11,5,12],[3,0,3,3],[3,4,3,10],[1,0,1,3],[1,4,1,10],[2,0,2,3],[2,4,2,10],[0,0,0,12],[1,11,1,12],[2,11,2,12],[3,11,3,12],[4,11,4,12],[20,0,20,10],[21,0,21,10],[22,0,22,10],[4,0,4,3],[4,4,4,10],[5,0,5,3],[5,4,5,10],[9,1,9,10],[19,0,19,10]]}
["Post-mining land uses (PMLU)"]
["Rehabilitation area",null,null,null,"RA2"]
["Relevant activities",null,null,null,"Waste Rock Emplacement (Flat/Undulating) "]
["Total rehabilitation area size (ha)",null,null,null,567]
["Commencement of first milestone:\nRM1",null,null,null,"Rehabilitation of RA2 commenced prior to PRCP transition "]
["PMLU",null,null,null,"Mixed Use Open Woodland"]
["Date area is available","2022-12-10","2023-12-10","2024-12-10","2025-12-10","2026-12-10","2028-12-10","2032-12-10","2037-12-10","2044-12-10"]
["Cumulative area available (ha)",54.870000000000005,54.870000000000005,85.52000000000001,87.700000000000017,92.850000000000023,96.800000000000026,280.17000000000007,448.75000000000006,566.70000000000016]
["Milestone completed by","2023-12-10","2024-12-10","2025-12-10","2026-12-10","2028-12-10","2032-12-10","2037-12-10","2044-12-10","2049-12-10","2054-12-10","2059-12-10","2064-12-10"]
["Milestone Reference","Cumulative area achieved (ha)"]
["RM1",54.870000000000005,54.870000000000005,85.52000000000001,87.700000000000017,92.850000000000023,96.800000000000026,280.17000000000007,448.75000000000006,566.70000000000016]
["RM3",54.870000000000005,54.870000000000005,85.52000000000001,87.700000000000017,92.850000000000023,96.800000000000026,280.17000000000007,448.75000000000006,566.70000000000016]
["RM4",54.870000000000005,54.870000000000005,85.52000000000001,87.700000000000017,92.850000000000023,96.800000000000026,280.17000000000007,448.75000000000006,566.70000000000016]
["RM5",43.7,54.870000000000005,85.52000000000001,87.700000000000017,92.850000000000023,96.800000000000026,280.17000000000007,448.75000000000006,566.70000000000016]
["RM6",0,43.7,54.870000000000005,85.52000000000001,87.700000000000017,95.15000000000002,277.70000000000005,432.17000000000007,482.35000000000019,566.70000000000016]
["RM8",0,0,0,0,0,0,217.40000000000003,394.17000000000007,476.75000000000017,482.35000000000019,566.70000000000016]
["RM9",0,0,0,0,0,0,0,356.17000000000007,471.15000000000015,476.75000000000017,482.35000000000019,566.70000000000016]
[]
[]
["1) Insert new columns to the yellow table to include further rehabilitation milestone dates."]
["2) Insert new columns to the blue table to match rehabilitation milestone dates."]
["3) Insert new rows to the blue table to include additional rehabilitation milestone references."]
["4) Insert the relevant number in the \"Milestone reference\" column (i.e. RM1)."]

{"sheet":"RA3","index":4,"n_rows":22,"n_cols":13,"rows_kept":22,"cut":false,"hidden":false,"merged":[[0,0,0,12],[4,0,4,3],[4,4,4,10],[5,0,5,3],[5,4,5,10],[3,0,3,3],[3,4,3,10],[1,0,1,3],[1,4,1,10],[2,0,2,3],[2,4,2,10],[18,0,18,10],[18,12,21,12],[9,1,9,12],[19,0,19,10],[20,0,20,10],[21,0,21,10]]}
["Post-mining land uses (PMLU)"]
["Rehabilitation area",null,null,null,"RA3"]
["Relevant activities",null,null,null,"Waste Rock Emplacement  (slopes <16%)"]
["Total rehabilitation area size (ha)",null,null,null,445]
["Commencement of first milestone:\nRM1",null,null,null,2022]
["PMLU",null,null,null,"Mixed Use Open Woodland "]
["Date area is available","2022-12-10","2023-12-10","2024-12-10","2025-12-10","2026-12-10","2028-12-10","2032-12-10","2037-12-10","2044-12-10"]
["Cumulative area available (ha)",40,74,74,77.63,100.11,179.19,238.98999999999998,327.59000000000003,444.59000000000003]
["Milestone completed by","2023-12-10","2024-12-10","2025-12-10","2026-12-10","2028-12-10","2032-12-10","2037-12-10","2044-12-10","2049-12-10","2054-12-10","2059-12-10","2064-12-10"]
["Milestone Reference","Cumulative area achieved (ha)"]
["RM1",40,74,74,77.63,100.11,179.19,238.98999999999998,327.59000000000003,444.59000000000003]
["RM3",40,74,74,77.63,100.11,179.19,238.98999999999998,327.59000000000003,444.59000000000003]
["RM4",40,74,74,77.63,100.11,179.19,238.98999999999998,327.59000000000003,444.59000000000003]
["RM5",0,40,74,77.63,100.11,179.19,238.98999999999998,327.59000000000003,444.59000000000003]
["RM7",0,0,40,74,77.63,142.82,231.98999999999998,304.99,387.59000000000003,444.59000000000003]
["RM8",0,0,0,0,0,0,214.39,288.49,377.59000000000003,387.59000000000003,444.59000000000003]
["RM10",0,0,0,0,0,0,0,271.99,367.59000000000003,377.59000000000003,387.59000000000003,444.59000000000003]
[]
["1) Insert new columns to the yellow table to include further rehabilitation milestone dates."]
["2) Insert new columns to the blue table to match rehabilitation milestone dates."]
["3) Insert new rows to the blue table to include additional rehabilitation milestone references."]
["4) Insert the relevant number in the \"Milestone reference\" column (i.e. RM1)."]

{"sheet":"RA4","index":5,"n_rows":22,"n_cols":13,"rows_kept":22,"cut":false,"hidden":false,"merged":[[0,0,0,12],[3,0,3,3],[3,4,3,10],[1,0,1,3],[1,4,1,10],[2,0,2,3],[2,4,2,10],[19,0,19,10],[20,0,20,10],[21,0,21,10],[4,0,4,3],[5,0,5,3],[5,4,5,10],[18,0,18,10],[4,4,4,11],[9,1,9,12]]}
["Post-mining land uses (PMLU)"]
["Rehabilitation area",null,null,null,"RA4"]
["Relevant activities",null,null,null,"Waste Rock Emplacement (Flat/Undulating) "]
["Total rehabilitation area size (ha)",null,null,null,504]
["Commencement of first milestone:\nRM1",null,null,null,"Rehabilitation of RA4 commenced prior to PRCP transition "]
["PMLU",null,null,null,"Mixed Use Open Woodland "]
["Date area is available","2022-12-10","2023-12-10","2024-12-10","2025-12-10","2026-12-10","2028-12-10","2032-12-10","2037-12-10","2044-12-10"]
["Cumulative area available (ha)",105.55,154.55000000000001,154.55000000000001,172.21,225.81,318.17999999999995,383.70000000000005,445.51000000000016,503.51000000000016]
["Milestone completed by","2023-12-10","2024-12-10","2025-12-10","2026-12-10","2028-12-10","2032-12-10","2037-12-10","2044-12-10","2049-12-10","2054-12-10","2059-12-10","2064-12-10"]
["Milestone Reference","Cumulative area achieved (ha)"]
["RM1",105.55,154.55000000000001,154.55000000000001,172.21,225.81,318.17999999999995,383.70000000000005,445.51000000000016,503.51000000000016]
["RM3",105.55,154.55000000000001,154.55000000000001,172.21,225.81,318.17999999999995,383.70000000000005,445.51000000000016,503.51000000000016]
["RM4",105.55,154.55000000000001,154.55000000000001,172.21,225.81,318.17999999999995,383.70000000000005,445.51000000000016,503.51000000000016]
["RM5",34.799999999999997,106,154.55000000000001,172.21,225.81,318.17999999999995,383.70000000000005,445.51000000000016,503.51000000000016]
["RM6",0,35,105.55,154.55000000000001,172.21,225.81,382.98,444.10000000000014,487.51000000000016,503.51000000000016]
["RM8",0,0,0,0,0,0,361.38,429.00000000000011,480.51000000000016,487.51000000000016,503.51000000000016]
["RM9",0,0,0,0,0,0,0,413.90000000000009,473.51000000000016,480.51000000000016,487.51000000000016,503.51000000000016]
[]
["1) Insert new columns to the yellow table to include further rehabilitation milestone dates."]
["2) Insert new columns to the blue table to match rehabilitation milestone dates."]
["3) Insert new rows to the blue table to include additional rehabilitation milestone references."]
["4) Insert the relevant number in the \"Milestone reference\" column (i.e. RM1)."]

{"sheet":"RA5","index":6,"n_rows":22,"n_cols":9,"rows_kept":22,"cut":false,"hidden":false,"merged":[[5,4,5,8],[4,0,4,3],[5,0,5,3],[3,0,3,3],[1,0,1,3],[2,0,2,3],[0,0,0,8],[1,4,1,8],[2,4,2,8],[3,4,3,8],[4,4,4,8]]}
["Post-mining land uses (PMLU)"]
["Rehabilitation area",null,null,null,"RA5"]
["Relevant activities",null,null,null,"Waste Rock Emplacement (Flat/Undulating) "]
["Total rehabilitation area size (ha)",null,null,null,304]
["Commencement of first milestone:\nRM1",null,null,null,"Rehabilitation of RA5 commenced prior to PRCP transition "]
["PMLU",null,null,null,"Mixed Use Open Woodland "]
["Date area is available","2022-12-10","2028-12-10","2032-12-10","2037-12-10","2044-12-10"]
["Cumulative area available (ha)",{"$f":"'[1]Full Schedule'!J54","v":15.2},{"$f":"'[1]Full Schedule'!P54","v":24.98},{"$f":"'[1]Full Schedule'!T54","v":77.27},{"$f":"'[1]Full Schedule'!Y54","v":155.95999999999998},{"$f":"'[1]Full Schedule'!AF54","v":303.95999999999998}]
["Milestone completed by","2023-12-10","2032-12-10","2037-12-10","2044-12-10","2049-12-10","2054-12-10","2059-12-10","2064-12-10"]
["Milestone Reference","Cumulative area achieved (ha)"]
["RM1",{"$f":"'[1]Full Schedule'!J55","v":15.2},{"$f":"'[1]Full Schedule'!P55","v":24.98},{"$f":"'[1]Full Schedule'!T55","v":77.27},{"$f":"'[1]Full Schedule'!Y55","v":155.95999999999998},{"$f":"'[1]Full Schedule'!AF55","v":303.95999999999998}]
["RM3",{"$f":"'[1]Full Schedule'!J56","v":15.2},{"$f":"'[1]Full Schedule'!P56","v":24.98},{"$f":"'[1]Full Schedule'!T56","v":77.27},{"$f":"'[1]Full Schedule'!Y56","v":155.95999999999998},{"$f":"'[1]Full Schedule'!AF56","v":303.95999999999998}]
["RM4",{"$f":"'[1]Full Schedule'!J57","v":15.2},{"$f":"'[1]Full Schedule'!P57","v":24.98},{"$f":"'[1]Full Schedule'!T57","v":77.27},{"$f":"'[1]Full Schedule'!Y57","v":155.95999999999998},{"$f":"'[1]Full Schedule'!AF57","v":303.95999999999998}]
["RM5",{"$f":"'[1]Full Schedule'!J58","v":15.2},{"$f":"'[1]Full Schedule'!P58","v":24.98},{"$f":"'[1]Full Schedule'!T58","v":77.27},{"$f":"'[1]Full Schedule'!Y58","v":155.95999999999998},{"$f":"'[1]Full Schedule'!AF58","v":303.95999999999998}]
["RM6",{"$f":"'[1]Full Schedule'!J59","v":0},{"$f":"'[1]Full Schedule'!P59","v":21.09},{"$f":"'[1]Full Schedule'!T59","v":49.879999999999995},{"$f":"'[1]Full Schedule'!Y59","v":143.26999999999998},{"$f":"'[1]Full Schedule'!AF59","v":248.95999999999998},{"$f":"'[1]Full Schedule'!AG59","v":303.95999999999998}]
["RM8",{"$f":"'[1]Full Schedule'!J60","v":0},{"$f":"'[1]Full Schedule'!P60","v":0},{"$f":"'[1]Full Schedule'!T60","v":41.58},{"$f":"'[1]Full Schedule'!Y60","v":126.77},{"$f":"'[1]Full Schedule'!AF60","v":233.45999999999998},{"$f":"'[1]Full Schedule'!AG60","v":248.95999999999998},{"$f":"'[1]Full Schedule'!AH60","v":303.95999999999998}]
["RM9",{"$f":"'[1]Full Schedule'!J61","v":0},{"$f":"'[1]Full Schedule'!P61","v":0},{"$f":"'[1]Full Schedule'!T61","v":0},{"$f":"'[1]Full Schedule'!Y61","v":110.27},{"$f":"'[1]Full Schedule'!AF61","v":217.95999999999998},{"$f":"'[1]Full Schedule'!AG61","v":233.45999999999998},{"$f":"'[1]Full Schedule'!AH61","v":248.95999999999998},{"$f":"'[1]Full Schedule'!AI61","v":303.95999999999998}]
[]
["1) Insert new columns to the yellow table to include further rehabilitation milestone dates."]
["2) Insert new columns to the blue table to match rehabilitation milestone dates."]
["3) Insert new rows to the blue table to include additional rehabilitation milestone references."]
["4) Insert the relevant number in the \"Milestone reference\" column (i.e. RM1)."]

{"sheet":"RA6","index":7,"n_rows":22,"n_cols":11,"rows_kept":22,"cut":false,"hidden":false,"merged":[[4,4,4,10],[0,0,0,10],[19,0,19,10],[20,0,20,10],[21,0,21,10],[4,0,4,3],[5,0,5,3],[5,4,5,10],[18,0,18,10],[3,0,3,3],[3,4,3,10],[1,0,1,3],[1,4,1,10],[2,0,2,3],[2,4,2,10]]}
["Post-mining land uses (PMLU)"]
["Rehabilitation area",null,null,null,"RA6"]
["Relevant activities",null,null,null,"Waste Rock Emplacement (slopes <16%)"]
["Total rehabilitation area size (ha)",null,null,null,135]
["Commencement of first milestone:\nRM1",null,null,null,"Rehabilitation of RA6 commenced prior to PRCP transition "]
["PMLU",null,null,null,"Mixed Use Open Woodland "]
["Date area is available","2024-12-10","2025-12-10","2026-12-10","2028-12-10","2032-12-10","2037-12-10","2044-12-10"]
["Cumulative area available (ha)",{"$f":"'[1]Full Schedule'!L66","v":7.92},{"$f":"'[1]Full Schedule'!M66","v":14.219999999999999},{"$f":"'[1]Full Schedule'!N66","v":21.95},{"$f":"'[1]Full Schedule'!P66","v":30.57},{"$f":"'[1]Full Schedule'!T66","v":60.17},{"$f":"'[1]Full Schedule'!Y66","v":104.27},{"$f":"'[1]Full Schedule'!AF66","v":135.47}]
["Milestone completed by","2025-12-10","2026-12-10","2028-12-10","2032-12-10","2037-12-10","2044-12-10","2049-12-10","2054-12-10","2059-12-10","2064-12-10"]
["Milestone Reference","Cumulative area achieved (ha)"]
["RM1",{"$f":"'[1]Full Schedule'!L67","v":7.92},{"$f":"'[1]Full Schedule'!M67","v":14.219999999999999},{"$f":"'[1]Full Schedule'!N67","v":21.95},{"$f":"'[1]Full Schedule'!P67","v":30.57},{"$f":"'[1]Full Schedule'!T67","v":60.17},{"$f":"'[1]Full Schedule'!Y67","v":104.27},{"$f":"'[1]Full Schedule'!AF67","v":135.47}]
["RM3",{"$f":"'[1]Full Schedule'!L68","v":7.92},{"$f":"'[1]Full Schedule'!M68","v":14.219999999999999},{"$f":"'[1]Full Schedule'!N68","v":21.95},{"$f":"'[1]Full Schedule'!P68","v":30.57},{"$f":"'[1]Full Schedule'!T68","v":60.17},{"$f":"'[1]Full Schedule'!Y68","v":104.27},{"$f":"'[1]Full Schedule'!AF68","v":135.47}]
["RM4",{"$f":"'[1]Full Schedule'!L69","v":7.92},{"$f":"'[1]Full Schedule'!M69","v":14.219999999999999},{"$f":"'[1]Full Schedule'!N69","v":21.95},{"$f":"'[1]Full Schedule'!P69","v":30.57},{"$f":"'[1]Full Schedule'!T69","v":60.17},{"$f":"'[1]Full Schedule'!Y69","v":104.27},{"$f":"'[1]Full Schedule'!AF69","v":135.47}]
["RM5",{"$f":"'[1]Full Schedule'!L70","v":7.92},{"$f":"'[1]Full Schedule'!M70","v":14.219999999999999},{"$f":"'[1]Full Schedule'!N70","v":21.95},{"$f":"'[1]Full Schedule'!P70","v":30.57},{"$f":"'[1]Full Schedule'!T70","v":60.17},{"$f":"'[1]Full Schedule'!Y70","v":104.27},{"$f":"'[1]Full Schedule'!AF70","v":135.47}]
["RM7",{"$f":"'[1]Full Schedule'!L71","v":6.9},{"$f":"'[1]Full Schedule'!M71","v":7.92},{"$f":"'[1]Full Schedule'!N71","v":14.219999999999999},{"$f":"'[1]Full Schedule'!P71","v":28.27},{"$f":"'[1]Full Schedule'!T71","v":44.370000000000005},{"$f":"'[1]Full Schedule'!Y71","v":95.36999999999999},{"$f":"'[1]Full Schedule'!AF71","v":122.27},{"$f":"'[1]Full Schedule'!AG71","v":135}]
["RM8",{"$f":"'[1]Full Schedule'!L72","v":0},{"$f":"'[1]Full Schedule'!M72","v":0},{"$f":"'[1]Full Schedule'!CH48","v":0},{"$f":"'[1]Full Schedule'!P72","v":0},{"$f":"'[1]Full Schedule'!T72","v":39.770000000000003},{"$f":"'[1]Full Schedule'!Y72","v":86.57},{"$f":"'[1]Full Schedule'!AF72","v":119.27},{"$f":"'[1]Full Schedule'!AG72","v":122},{"$f":"'[1]Full Schedule'!AH72","v":135}]
["RM10",{"$f":"'[1]Full Schedule'!L73","v":0},{"$f":"'[1]Full Schedule'!M73","v":0},{"$f":"'[1]Full Schedule'!CH49","v":0},{"$f":"'[1]Full Schedule'!CM49","v":0},{"$f":"'[1]Full Schedule'!CR49","v":0},{"$f":"'[1]Full Schedule'!Y73","v":77.77},{"$f":"'[1]Full Schedule'!AF73","v":116.27},{"$f":"'[1]Full Schedule'!AG73","v":119},{"$f":"'[1]Full Schedule'!AH73","v":122},{"$f":"'[1]Full Schedule'!AI73","v":135}]
[]
["1) Insert new columns to the yellow table to include further rehabilitation milestone dates."]
["2) Insert new columns to the blue table to match rehabilitation milestone dates."]
["3) Insert new rows to the blue table to include additional rehabilitation milestone references."]
["4) Insert the relevant number in the \"Milestone reference\" column (i.e. RM1)."]

{"sheet":"RA7","index":8,"n_rows":22,"n_cols":2,"rows_kept":22,"cut":false,"hidden":false,"merged":[[19,0,19,8],[20,0,20,8],[21,0,21,8],[18,0,18,8]]}
["Post-mining land uses (PMLU)"]
["Rehabilitation area","RA7"]
["Relevant activities","Tailings Storage Facility "]
["Total rehabilitation area size (ha)",10]
["Commencement of first milestone:\nRM1",2044]
["PMLU","Mixed Use Open Woodland "]
["Date area is available","2044-12-10"]
["Cumulative area available (ha)",{"$f":"'[1]Full Schedule'!AF78","v":10.3}]
["Milestone completed by","2064-12-10"]
["Milestone Reference","Cumulative area achieved (ha)"]
["RM1",{"$f":"'[1]Full Schedule'!AF79","v":10.3}]
["RM2",{"$f":"'[1]Full Schedule'!AF80","v":10.3}]
["RM4",{"$f":"'[1]Full Schedule'!AF81","v":10.3}]
["RM5",{"$f":"'[1]Full Schedule'!AF82","v":10.3}]
["RM6",{"$f":"'[1]Full Schedule'!AF83","v":10.3}]
["RM8",{"$f":"'[1]Full Schedule'!AF84","v":10.3}]
["RM9",{"$f":"'[1]Full Schedule'!AF85","v":10.3}]
[]
["1) Insert new columns to the yellow table to include further rehabilitation milestone dates."]
["2) Insert new columns to the blue table to match rehabilitation milestone dates."]
["3) Insert new rows to the blue table to include additional rehabilitation milestone references."]
["4) Insert the relevant number in the \"Milestone reference\" column (i.e. RM1)."]

{"sheet":"RA8","index":9,"n_rows":22,"n_cols":10,"rows_kept":22,"cut":false,"hidden":false,"merged":[[0,0,0,9],[1,0,1,3],[2,0,2,3],[1,4,1,9],[2,4,2,9],[3,4,3,9],[4,0,4,3],[5,0,5,3],[4,4,4,9],[5,4,5,9],[3,0,3,3]]}
["Post-mining land uses (PMLU)"]
["Rehabilitation area",null,null,null,"RA8"]
["Relevant activities",null,null,null,"Infrastructure Area "]
["Total rehabilitation area size (ha)",null,null,null,125]
["Commencement of first milestone:\nRM1",null,null,null,"Rehabilitation of RA8 commenced prior to PRCP transition. "]
["PMLU",null,null,null,"Mixed Use Open Woodland "]
["Date area is available","2022-12-10","2023-12-10","2024-12-10","2025-12-10","2026-12-10","2032-12-10","2037-12-10","2044-12-10"]
["Cumulative area available (ha)",{"$f":"'[1]Full Schedule'!J90","v":1},{"$f":"'[1]Full Schedule'!K90","v":1},{"$f":"'[1]Full Schedule'!L90","v":13.36},{"$f":"'[1]Full Schedule'!M90","v":13.36},{"$f":"'[1]Full Schedule'!N90","v":13.36},{"$f":"'[1]Full Schedule'!T90","v":13.36},{"$f":"'[1]Full Schedule'!Y90","v":13.36},{"$f":"'[1]Full Schedule'!AF90","v":124.76}]
["Milestone completed by","2023-12-10","2024-12-10","2025-12-10","2026-12-10","2028-12-10","2037-12-10","2044-12-10","2049-12-10","2054-12-10"]
["Milestone Reference","Cumulative area achieved (ha)"]
["RM1",{"$f":"'[1]Full Schedule'!J91","v":1},{"$f":"'[1]Full Schedule'!K91","v":1},{"$f":"'[1]Full Schedule'!L91","v":13.36},{"$f":"'[1]Full Schedule'!M91","v":13.36},{"$f":"'[1]Full Schedule'!N91","v":13.36},{"$f":"'[1]Full Schedule'!T91","v":13.36},{"$f":"'[1]Full Schedule'!Y91","v":13.36},{"$f":"'[1]Full Schedule'!AF91","v":124.76}]
["RM2",{"$f":"'[1]Full Schedule'!J92","v":1},{"$f":"'[1]Full Schedule'!K92","v":1},{"$f":"'[1]Full Schedule'!L92","v":13.36},{"$f":"'[1]Full Schedule'!M92","v":13.36},{"$f":"'[1]Full Schedule'!N92","v":13.36},{"$f":"'[1]Full Schedule'!T92","v":13.36},{"$f":"'[1]Full Schedule'!Y92","v":13.36},{"$f":"'[1]Full Schedule'!AF92","v":124.76}]
["RM4",{"$f":"'[1]Full Schedule'!J93","v":1},{"$f":"'[1]Full Schedule'!K93","v":1},{"$f":"'[1]Full Schedule'!L93","v":13.36},{"$f":"'[1]Full Schedule'!M93","v":13.36},{"$f":"'[1]Full Schedule'!N93","v":13.36},{"$f":"'[1]Full Schedule'!T93","v":13.36},{"$f":"'[1]Full Schedule'!Y93","v":13.36},{"$f":"'[1]Full Schedule'!AF93","v":124.76}]
["RM5",{"$f":"'[1]Full Schedule'!J94","v":1},{"$f":"'[1]Full Schedule'!K94","v":1},{"$f":"'[1]Full Schedule'!L94","v":13.36},{"$f":"'[1]Full Schedule'!M94","v":13.36},{"$f":"'[1]Full Schedule'!N94","v":13.36},{"$f":"'[1]Full Schedule'!T94","v":13.36},{"$f":"'[1]Full Schedule'!Y94","v":13.36},{"$f":"'[1]Full Schedule'!AF94","v":124.76}]
["RM6",{"$f":"'[1]Full Schedule'!J95","v":0},{"$f":"'[1]Full Schedule'!K95","v":1},{"$f":"'[1]Full Schedule'!L95","v":1},{"$f":"'[1]Full Schedule'!M95","v":13.36},{"$f":"'[1]Full Schedule'!N95","v":13.36},{"$f":"'[1]Full Schedule'!T95","v":13.36},{"$f":"'[1]Full Schedule'!Y95","v":13.36},{"$f":"'[1]Full Schedule'!AF95","v":124.76}]
["RM8",{"$f":"'[1]Full Schedule'!J96","v":0},{"$f":"'[1]Full Schedule'!K96","v":0},{"$f":"'[1]Full Schedule'!CH48","v":0},{"$f":"'[1]Full Schedule'!M96","v":0},{"$f":"'[1]Full Schedule'!N96","v":0},{"$f":"'[1]Full Schedule'!T96","v":13.36},{"$f":"'[1]Full Schedule'!Y96","v":13.36},{"$f":"'[1]Full Schedule'!AF96","v":124.76}]
["RM9",{"$f":"'[1]Full Schedule'!J97","v":0},{"$f":"'[1]Full Schedule'!K97","v":0},{"$f":"'[1]Full Schedule'!CH49","v":0},{"$f":"'[1]Full Schedule'!M97","v":0},{"$f":"'[1]Full Schedule'!N97","v":0},{"$f":"'[1]Full Schedule'!T97","v":0},{"$f":"'[1]Full Schedule'!Y97","v":13.36},{"$f":"'[1]Full Schedule'!AF97","v":13.36},{"$f":"'[1]Full Schedule'!AG97","v":124.76}]
[]
["1) Insert new columns to the yellow table to include further rehabilitation milestone dates."]
["2) Insert new columns to the blue table to match rehabilitation milestone dates."]
["3) Insert new rows to the blue table to include additional rehabilitation milestone references."]
["4) Insert the relevant number in the \"Milestone reference\" column (i.e. RM1)."]

{"sheet":"RA9","index":10,"n_rows":22,"n_cols":9,"rows_kept":22,"cut":false,"hidden":false,"merged":[[3,0,3,3],[3,4,3,8],[0,0,0,8],[1,0,1,3],[1,4,1,8],[2,0,2,3],[2,4,2,8],[19,0,19,8],[20,0,20,8],[21,0,21,8],[4,0,4,3],[4,4,4,8],[5,0,5,3],[5,4,5,8],[18,0,18,8],[9,1,9,8]]}
["Post-mining land uses (PMLU)"]
["Rehabilitation area",null,null,null,"RA9"]
["Relevant activities",null,null,null,"Infrastructure Area "]
["Total rehabilitation area size (ha)",null,null,null,203]
["Commencement of first milestone:\nRM1",null,null,null,"Rehabilitation of RA9 commenced prior to PRCP transition "]
["PMLU",null,null,null,"Mixed Use Open Woodland "]
["Date area is available","2022-12-10","2023-12-10","2024-12-10","2025-12-10","2032-12-10","2037-12-10","2044-12-10"]
["Cumulative area available (ha)",{"$f":"'[1]Full Schedule'!J102","v":28},{"$f":"'[1]Full Schedule'!K102","v":28},{"$f":"'[1]Full Schedule'!L102","v":62.34},{"$f":"'[1]Full Schedule'!M102","v":62.34},{"$f":"'[1]Full Schedule'!T102","v":62.34},{"$f":"'[1]Full Schedule'!Y102","v":65.940000000000012},{"$f":"'[1]Full Schedule'!AF102","v":203.34000000000003}]
["Milestone completed by","2023-12-10","2024-12-10","2025-12-10","2026-12-10","2037-12-10","2044-12-10","2049-12-10","2054-12-10"]
["Milestone Reference","Cumulative area achieved (ha)"]
["RM1",{"$f":"'[1]Full Schedule'!J103","v":28},{"$f":"'[1]Full Schedule'!K103","v":28},{"$f":"'[1]Full Schedule'!L103","v":62.34},{"$f":"'[1]Full Schedule'!M103","v":62.34},{"$f":"'[1]Full Schedule'!T103","v":62.34},{"$f":"'[1]Full Schedule'!Y103","v":65.940000000000012},{"$f":"'[1]Full Schedule'!AF103","v":203.34000000000003}]
["RM2",{"$f":"'[1]Full Schedule'!J104","v":28},{"$f":"'[1]Full Schedule'!K104","v":28},{"$f":"'[1]Full Schedule'!L104","v":62.34},{"$f":"'[1]Full Schedule'!M104","v":62.34},{"$f":"'[1]Full Schedule'!T104","v":62.34},{"$f":"'[1]Full Schedule'!Y104","v":65.940000000000012},{"$f":"'[1]Full Schedule'!AF104","v":203.34000000000003}]
["RM4",{"$f":"'[1]Full Schedule'!J105","v":28},{"$f":"'[1]Full Schedule'!K105","v":28},{"$f":"'[1]Full Schedule'!L105","v":62.34},{"$f":"'[1]Full Schedule'!M105","v":62.34},{"$f":"'[1]Full Schedule'!T105","v":62.34},{"$f":"'[1]Full Schedule'!Y105","v":65.940000000000012},{"$f":"'[1]Full Schedule'!AF105","v":203.34000000000003}]
["RM5",{"$f":"'[1]Full Schedule'!J106","v":28},{"$f":"'[1]Full Schedule'!K106","v":28},{"$f":"'[1]Full Schedule'!L106","v":62.34},{"$f":"'[1]Full Schedule'!M106","v":62.34},{"$f":"'[1]Full Schedule'!T106","v":62.34},{"$f":"'[1]Full Schedule'!Y106","v":65.940000000000012},{"$f":"'[1]Full Schedule'!AF106","v":203.34000000000003}]
["RM6",{"$f":"'[1]Full Schedule'!J107","v":0},{"$f":"'[1]Full Schedule'!K107","v":28},{"$f":"'[1]Full Schedule'!L107","v":28},{"$f":"'[1]Full Schedule'!M107","v":62.34},{"$f":"'[1]Full Schedule'!T107","v":62.34},{"$f":"'[1]Full Schedule'!Y107","v":65.940000000000012},{"$f":"'[1]Full Schedule'!AF107","v":203.34000000000003}]
["RM8",{"$f":"'[1]Full Schedule'!J108","v":0},{"$f":"'[1]Full Schedule'!K108","v":0},{"$f":"'[1]Full Schedule'!L108","v":0},{"$f":"'[1]Full Schedule'!M108","v":0},{"$f":"'[1]Full Schedule'!T108","v":62.34},{"$f":"'[1]Full Schedule'!Y108","v":65.940000000000012},{"$f":"'[1]Full Schedule'!AF108","v":203.34000000000003}]
["RM9",{"$f":"'[1]Full Schedule'!J109","v":0},{"$f":"'[1]Full Schedule'!K109","v":0},{"$f":"'[1]Full Schedule'!BB110","v":0},{"$f":"'[1]Full Schedule'!M109","v":0},{"$f":"'[1]Full Schedule'!T109","v":0},{"$f":"'[1]Full Schedule'!Y109","v":65.040000000000006},{"$f":"'[1]Full Schedule'!AF109","v":71.340000000000046},{"$f":"'[1]Full Schedule'!AG109","v":203.34000000000003}]
[]
["1) Insert new columns to the yellow table to include further rehabilitation milestone dates."]
["2) Insert new columns to the blue table to match rehabilitation milestone dates."]
["3) Insert new rows to the blue table to include additional rehabilitation milestone references."]
["4) Insert the relevant number in the \"Milestone reference\" column (i.e. RM1)."]

{"sheet":"RA10","index":11,"n_rows":22,"n_cols":8,"rows_kept":22,"cut":false,"hidden":false,"merged":[[3,0,3,3],[3,4,3,7],[0,0,0,7],[1,0,1,3],[1,4,1,7],[2,0,2,3],[2,4,2,7],[19,0,19,7],[20,0,20,7],[21,0,21,7],[18,0,18,7],[4,0,4,3],[4,4,4,7],[5,0,5,3],[5,4,5,7],[9,1,9,7]]}
["Post-mining land uses (PMLU)"]
["Rehabilitation area",null,null,null,"RA10"]
["Relevant activities",null,null,null,"Infrastructure Area "]
["Total rehabilitation area size (ha)",null,null,null,29]
["Commencement of first milestone:\nRM1",null,null,null,2023]
["PMLU",null,null,null,"Mixed Use Open Woodland "]
["Date area is available","2023-12-10","2024-12-10","2025-12-10","2032-12-10","2037-12-10","2044-12-10"]
["Cumulative area available (ha)",{"$f":"'[1]Full Schedule'!K114","v":2.98},{"$f":"'[1]Full Schedule'!L114","v":2.98},{"$f":"'[1]Full Schedule'!M114","v":2.98},{"$f":"'[1]Full Schedule'!T114","v":2.98},{"$f":"'[1]Full Schedule'!Y114","v":2.98},{"$f":"'[1]Full Schedule'!AF114","v":29.28}]
["Milestone completed by","2024-12-10","2025-12-10","2026-12-10","2037-12-10","2044-12-10","2049-12-10","2054-12-10"]
["Milestone Reference","Cumulative area achieved (ha)"]
["RM1",{"$f":"'[1]Full Schedule'!K115","v":3},{"$f":"'[1]Full Schedule'!L115","v":2.98},{"$f":"'[1]Full Schedule'!M115","v":2.98},{"$f":"'[1]Full Schedule'!T115","v":2.98},{"$f":"'[1]Full Schedule'!Y115","v":2.98},{"$f":"'[1]Full Schedule'!AF115","v":29.28}]
["RM2",{"$f":"'[1]Full Schedule'!K116","v":3},{"$f":"'[1]Full Schedule'!L116","v":2.98},{"$f":"'[1]Full Schedule'!M116","v":2.98},{"$f":"'[1]Full Schedule'!T116","v":2.98},{"$f":"'[1]Full Schedule'!Y116","v":2.98},{"$f":"'[1]Full Schedule'!AF116","v":29.28}]
["RM4",{"$f":"'[1]Full Schedule'!K117","v":3},{"$f":"'[1]Full Schedule'!L117","v":2.98},{"$f":"'[1]Full Schedule'!M117","v":2.98},{"$f":"'[1]Full Schedule'!T117","v":2.98},{"$f":"'[1]Full Schedule'!Y117","v":2.98},{"$f":"'[1]Full Schedule'!AF117","v":29.28}]
["RM5",{"$f":"'[1]Full Schedule'!K118","v":0},{"$f":"'[1]Full Schedule'!L118","v":2.98},{"$f":"'[1]Full Schedule'!M118","v":2.98},{"$f":"'[1]Full Schedule'!T118","v":2.98},{"$f":"'[1]Full Schedule'!Y118","v":2.98},{"$f":"'[1]Full Schedule'!AF118","v":29.28}]
["RM6",{"$f":"'[1]Full Schedule'!K120","v":0},{"$f":"'[1]Full Schedule'!L119","v":0},{"$f":"'[1]Full Schedule'!M119","v":2.98},{"$f":"'[1]Full Schedule'!T119","v":2.98},{"$f":"'[1]Full Schedule'!Y119","v":2.98},{"$f":"'[1]Full Schedule'!AF119","v":29.28}]
["RM8",{"$f":"'[1]Full Schedule'!K121","v":0},{"$f":"'[1]Full Schedule'!L121","v":0},{"$f":"'[1]Full Schedule'!M121","v":0},{"$f":"'[1]Full Schedule'!T120","v":2.98},{"$f":"'[1]Full Schedule'!Y120","v":2.98},{"$f":"'[1]Full Schedule'!AF120","v":29.28}]
["RM9",{"$f":"'[1]Full Schedule'!K122","v":0},{"$f":"'[1]Full Schedule'!L122","v":0},{"$f":"'[1]Full Schedule'!M122","v":0},{"$f":"'[1]Full Schedule'!T121","v":0},{"$f":"'[1]Full Schedule'!Y121","v":2.98},{"$f":"'[1]Full Schedule'!AF121","v":2.98},{"$f":"'[1]Full Schedule'!AG121","v":29.28}]
[]
["1) Insert new columns to the yellow table to include further rehabilitation milestone dates."]
["2) Insert new columns to the blue table to match rehabilitation milestone dates."]
["3) Insert new rows to the blue table to include additional rehabilitation milestone references."]
["4) Insert the relevant number in the \"Milestone reference\" column (i.e. RM1)."]

{"sheet":"RA11","index":12,"n_rows":22,"n_cols":5,"rows_kept":22,"cut":false,"hidden":false,"merged":[[9,1,9,4],[5,0,5,3],[4,0,4,3],[0,0,0,10],[1,4,1,10],[2,4,2,10],[3,4,3,10],[4,4,4,10],[5,4,5,10],[3,0,3,3],[1,0,1,3],[2,0,2,3],[19,0,19,10],[20,0,20,10],[21,0,21,10],[18,0,18,10]]}
["Post-mining land uses (PMLU)"]
["Rehabilitation area",null,null,null,"RA11"]
["Relevant activities",null,null,null,"Infrastructure Areas"]
["Total rehabilitation area size (ha)",null,null,null,59]
["Commencement of first milestone:\nRM1",null,null,null,2037]
["PMLU",null,null,null,"Mixed Use Open Woodland "]
["Date area is available","2037-12-10","2044-12-10"]
["Cumulative area available (ha)",{"$f":"'[1]Full Schedule'!Y126","v":36.791060999999999},{"$f":"'[1]Full Schedule'!AF126","v":59.191060999999998}]
["Milestone completed by","2044-12-10","2049-12-10","2054-12-10","2059-12-10"]
["Milestone Reference","Cumulative area achieved (ha)"]
["RM1",{"$f":"'[1]Full Schedule'!Y127","v":36.791060999999999},{"$f":"'[1]Full Schedule'!AF127","v":59.191060999999998}]
["RM2",{"$f":"'[1]Full Schedule'!Y128","v":36.791060999999999},{"$f":"'[1]Full Schedule'!AF128","v":59.191060999999998}]
["RM4",{"$f":"'[1]Full Schedule'!Y129","v":36.791060999999999},{"$f":"'[1]Full Schedule'!AF129","v":59.191060999999998}]
["RM5",{"$f":"'[1]Full Schedule'!Y130","v":0},{"$f":"'[1]Full Schedule'!AF130","v":59.191060999999998}]
["RM6",{"$f":"'[1]Full Schedule'!Y131","v":0},{"$f":"'[1]Full Schedule'!AF131","v":59.191060999999998}]
["RM8",{"$f":"'[1]Full Schedule'!Y132","v":0},{"$f":"'[1]Full Schedule'!AF132","v":36.791060999999999},{"$f":"'[1]Full Schedule'!AG132","v":59}]
["RM9",{"$f":"'[1]Full Schedule'!Y133","v":0},{"$f":"'[1]Full Schedule'!AF133","v":0},{"$f":"'[1]Full Schedule'!AG133","v":37},{"$f":"'[1]Full Schedule'!AH133","v":59}]
[]
["1) Insert new columns to the yellow table to include further rehabilitation milestone dates."]
["2) Insert new columns to the blue table to match rehabilitation milestone dates."]
["3) Insert new rows to the blue table to include additional rehabilitation milestone references."]
["4) Insert the relevant number in the \"Milestone reference\" column (i.e. RM1)."]

{"sheet":"RA12","index":13,"n_rows":22,"n_cols":6,"rows_kept":22,"cut":false,"hidden":false,"merged":[[3,0,3,3],[3,4,3,10],[0,0,0,10],[1,0,1,3],[1,4,1,10],[2,0,2,3],[2,4,2,10],[19,0,19,10],[20,0,20,10],[21,0,21,10],[4,0,4,3],[4,4,4,10],[5,0,5,3],[5,4,5,10],[9,1,9,10],[18,0,18,10]]}
["Post-mining land uses (PMLU)"]
["Rehabilitation area",null,null,null,"RA12"]
["Relevant activities",null,null,null,"Waste Rock Emplacement (slopes >16%)"]
["Total rehabilitation area size (ha)",null,null,null,32]
["Commencement of first milestone:\nRM1",null,null,null,"Rehabilitation of RA12 commenced prior to PRCP transition "]
["PMLU",null,null,null,"Mixed Use Open Woodland "]
["Date area is available","2022-12-10","2023-12-10","2032-12-10","2037-12-10"]
["Cumulative area available (ha)",{"$f":"'[1]Full Schedule'!J137","v":28.45},{"$f":"'[1]Full Schedule'!K137","v":28.45},{"$f":"'[1]Full Schedule'!T137","v":28.45},{"$f":"'[1]Full Schedule'!Y137","v":32.450000000000003}]
["Milestone completed by","2023-12-10","2024-12-10","2037-12-10","2044-12-10","2049-12-10"]
["Milestone Reference","Cumulative area achieved (ha)"]
["RM1",{"$f":"'[1]Full Schedule'!J138","v":28.45},{"$f":"'[1]Full Schedule'!K138","v":28.45},{"$f":"'[1]Full Schedule'!T138","v":28.45},{"$f":"'[1]Full Schedule'!Y138","v":32.450000000000003}]
["RM3",{"$f":"'[1]Full Schedule'!J139","v":28.45},{"$f":"'[1]Full Schedule'!K139","v":28.45},{"$f":"'[1]Full Schedule'!T139","v":28.45},{"$f":"'[1]Full Schedule'!Y139","v":32.450000000000003}]
["RM4",{"$f":"'[1]Full Schedule'!J140","v":28.45},{"$f":"'[1]Full Schedule'!K140","v":28.45},{"$f":"'[1]Full Schedule'!T140","v":28.45},{"$f":"'[1]Full Schedule'!Y140","v":32.450000000000003}]
["RM5",{"$f":"'[1]Full Schedule'!J141","v":28.45},{"$f":"'[1]Full Schedule'!K141","v":28.45},{"$f":"'[1]Full Schedule'!T141","v":28.45},{"$f":"'[1]Full Schedule'!Y141","v":32.450000000000003}]
["RM7",{"$f":"'[1]Full Schedule'!J142","v":0},{"$f":"'[1]Full Schedule'!K142","v":28.45},{"$f":"'[1]Full Schedule'!T142","v":28.45},{"$f":"'[1]Full Schedule'!Y142","v":32.450000000000003}]
["RM8",{"$f":"'[1]Full Schedule'!J143","v":0},{"$f":"'[1]Full Schedule'!K143","v":0},{"$f":"'[1]Full Schedule'!T143","v":28.45},{"$f":"'[1]Full Schedule'!Y143","v":32.450000000000003}]
["RM10",{"$f":"'[1]Full Schedule'!J144","v":0},{"$f":"'[1]Full Schedule'!K144","v":0},{"$f":"'[1]Full Schedule'!T144","v":0},{"$f":"'[1]Full Schedule'!Y144","v":32.450000000000003},{"$f":"'[1]Full Schedule'!Y144","v":32.450000000000003}]
[]
["1) Insert new columns to the yellow table to include further rehabilitation milestone dates."]
["2) Insert new columns to the blue table to match rehabilitation milestone dates."]
["3) Insert new rows to the blue table to include additional rehabilitation milestone references."]
["4) Insert the relevant number in the \"Milestone reference\" column (i.e. RM1)."]

{"sheet":"RA13","index":14,"n_rows":17,"n_cols":2,"rows_kept":17,"cut":false,"hidden":false,"merged":[[0,0,0,1]]}
["Post-mining land uses (PMLU)"]
["Rehabilitation area","RA13"]
["Relevant activities","Water Management Infrastructure (Mine Water Dams) "]
["Total rehabilitation area size (ha)",51]
["Commencement of first milestone:\nRM1",2044]
["PMLU","Grazing (Retained Water Management Infrastructure)"]
["Date area is available","2044-12-10"]
["Cumulative area available (ha)",{"$f":"'[1]Full Schedule'!AF148","v":50.93}]
["Milestone completed by","2049-12-10"]
["Milestone Reference","Cumulative area achieved (ha)"]
["RM1",{"$f":"'[1]Full Schedule'!AF149","v":50.93}]
["RM11",{"$f":"'[1]Full Schedule'!AF150","v":50.93}]
[]
["1) Insert new columns to the yellow table to include further rehabilitation milestone dates."]
["2) Insert new columns to the blue table to match rehabilitation milestone dates."]
["3) Insert new rows to the blue table to include additional rehabilitation milestone references."]
["4) Insert the relevant number in the \"Milestone reference\" column (i.e. RM1)."]

{"sheet":"RA14","index":15,"n_rows":17,"n_cols":2,"rows_kept":17,"cut":false,"hidden":false,"merged":[]}
["Post-mining land uses (PMLU)"]
["Rehabilitation area","RA14"]
["Relevant activities","Water Management Infrastructure (Sediment Dams)"]
["Total rehabilitation area size (ha)",23]
["Commencement of first milestone:\nRM1",2044]
["PMLU","Grazing (Retained Water Management Infrastructure)"]
["Date area is available","2044-12-10"]
["Cumulative area available (ha)",{"$f":"'[1]Full Schedule'!AF160","v":22.7}]
["Milestone completed by","2049-12-10"]
["Milestone Reference","Cumulative area achieved (ha)"]
["RM1",{"$f":"'[1]Full Schedule'!AF161","v":22.7}]
["RM11",{"$f":"'[1]Full Schedule'!AF162","v":22.7}]
[]
["1) Insert new columns to the yellow table to include further rehabilitation milestone dates."]
["2) Insert new columns to the blue table to match rehabilitation milestone dates."]
["3) Insert new rows to the blue table to include additional rehabilitation milestone references."]
["4) Insert the relevant number in the \"Milestone reference\" column (i.e. RM1)."]

{"sheet":"RA15","index":16,"n_rows":21,"n_cols":8,"rows_kept":21,"cut":false,"hidden":false,"merged":[[1,4,1,7],[2,4,2,7],[3,4,3,7],[4,4,4,7],[5,4,5,7],[3,0,3,3],[1,0,1,3],[2,0,2,3],[4,0,4,3],[5,0,5,3]]}
["Post-mining land uses (PMLU)"]
["Rehabilitation area",null,null,null,"RA15"]
["Relevant activities",null,null,null,"Water Diversions"]
["Total rehabilitation area size (ha)",null,null,null,78]
["Commencement of first milestone:\nRM1",null,null,null,"Rehabilitation of RA15 commenced prior to PRCP transition "]
["PMLU",null,null,null,"Native Ecosystem "]
["Date area is available","2022-12-10","2023-12-10","2024-12-10","2032-12-10","2037-12-10","2044-12-10"]
["Cumulative area available (ha)",{"$f":"'[1]Full Schedule'!J171","v":16.2},{"$f":"'[1]Full Schedule'!K171","v":16.2},{"$f":"'[1]Full Schedule'!L171","v":31.509999999999998},{"$f":"'[1]Full Schedule'!T171","v":31.509999999999998},{"$f":"'[1]Full Schedule'!Y171","v":49.51},{"$f":"'[1]Full Schedule'!AF171","v":77.509999999999991}]
["Milestone completed by","2023-12-10","2024-12-10","2025-12-10","2037-12-10","2044-12-10","2049-12-10","2054-12-10"]
["Milestone Reference","Cumulative area achieved (ha)"]
["RM1",{"$f":"'[1]Full Schedule'!J172","v":16.2},{"$f":"'[1]Full Schedule'!K172","v":16.2},{"$f":"'[1]Full Schedule'!L172","v":31.509999999999998},{"$f":"'[1]Full Schedule'!T172","v":31.509999999999998},{"$f":"'[1]Full Schedule'!Y172","v":49.51},{"$f":"'[1]Full Schedule'!AF172","v":77.509999999999991}]
["RM4",{"$f":"'[1]Full Schedule'!J173","v":16.2},{"$f":"'[1]Full Schedule'!K173","v":16.2},{"$f":"'[1]Full Schedule'!L173","v":31.509999999999998},{"$f":"'[1]Full Schedule'!T173","v":31.509999999999998},{"$f":"'[1]Full Schedule'!Y173","v":49.51},{"$f":"'[1]Full Schedule'!AF173","v":77.509999999999991}]
["RM5",{"$f":"'[1]Full Schedule'!J174","v":16.2},{"$f":"'[1]Full Schedule'!K174","v":16.2},{"$f":"'[1]Full Schedule'!L174","v":31.509999999999998},{"$f":"'[1]Full Schedule'!T174","v":31.509999999999998},{"$f":"'[1]Full Schedule'!Y174","v":49.51},{"$f":"'[1]Full Schedule'!AF174","v":77.509999999999991}]
["RM7",{"$f":"'[1]Full Schedule'!J175","v":16.2},{"$f":"'[1]Full Schedule'!K175","v":16.2},{"$f":"'[1]Full Schedule'!L175","v":16.2},{"$f":"'[1]Full Schedule'!T175","v":31.509999999999998},{"$f":"'[1]Full Schedule'!Y175","v":49.51},{"$f":"'[1]Full Schedule'!AF175","v":77.509999999999991}]
["RM8",{"$f":"'[1]Full Schedule'!J176","v":0},{"$f":"'[1]Full Schedule'!K176","v":0},{"$f":"'[1]Full Schedule'!L176","v":0},{"$f":"'[1]Full Schedule'!T176","v":31.509999999999998},{"$f":"'[1]Full Schedule'!Y176","v":49.51},{"$f":"'[1]Full Schedule'!AF176","v":77.509999999999991}]
["RM10",{"$f":"'[1]Full Schedule'!J177","v":0},{"$f":"'[1]Full Schedule'!K177","v":0},{"$f":"'[1]Full Schedule'!L177","v":0},{"$f":"'[1]Full Schedule'!T177","v":0},{"$f":"'[1]Full Schedule'!Y177","v":31.509999999999998},{"$f":"'[1]Full Schedule'!AF177","v":61.51},{"$f":"'[1]Full Schedule'!AG177","v":77.509999999999991}]
[]
["1) Insert new columns to the yellow table to include further rehabilitation milestone dates."]
["2) Insert new columns to the blue table to match rehabilitation milestone dates."]
["3) Insert new rows to the blue table to include additional rehabilitation milestone references."]
["4) Insert the relevant number in the \"Milestone reference\" column (i.e. RM1)."]

{"sheet":"Rehabilitation Area Milestones","index":17,"n_rows":16,"n_cols":3,"rows_kept":16,"cut":false,"hidden":false,"merged":[[13,0,13,2],[14,0,14,2],[15,0,15,2]]}
["Milestone reference","Rehabilitation milestone","Milestone criteria"]
["RM1","Infrastructure Decommissioning and Removal","a) All services disconnected and decommissioned. \nb) Contaminated land and water (e.g. affected by hydrocarbons, metals, brine, etc) is treated to ensure consistency with upstream water quality characteristics, or removed off site. \nc) All wastes removed from site and lawfully disposed. \nd) All infrastructure water storages demolished and removed, unless agreed in writing by the landholders and relevant agencies. \ne) All haul roads and access tracks to be ripped and removed to reduce compaction unless agreed in writing by landholders and relevant agencies.\nf) Risk assessment undertaken to ensure that all infrastructure has been appropriately disconnected and decommissioned.\ng) Certification that all exploration drill holes not agreed to in writing with the post-mining landholder to be converted to either a water bore or groundwater monitoring bore have been rehabilitated safe and stable, and will remain safe and stable. "]
["RM2","Remediation of Contaminated Land (Characterisation) ","a) Detailed site investigation report, as required under the Environmental Protection Act 1994, completed. \nb) Contaminated and hazardous materials (e.g. PCBs, Mercury, hydrocarbon contaminated soils, Dioxins etc). have been removed and appropriately disposed of or remediated. \nc) Hydrocarbon, heavy metal, or other contaminants are within allowable departmental limits has been certified by an appropriately qualified person.\nd) A site suitability statement confirms the uses or activities for which the land is suitable and aligns to the approved PMLUs for the site. \ne) Validation testing confirms that contaminated soils have been removed or remediated. \n"]
["RM3","Remediation of Contaminated Land (Waste Rock Material Treatment) ","a) Site added to the Environmental Management Register, if required. \nb) Remediation of contaminated soil materials such as hydrocarbon has been undertaken as required. \nc) Validation testing confirms that contaminated soils have been removed or remediated. \nd) No acid rock drainage is occurring or has the potential to occur.\n\n\n\n"]
["RM4","Landform Establishment (Capping, Development and Reshaping/Re-profiling)","a) Engineering and design plans for TSF and emplacement areas finalised. \nb) Tailings have settled before capping. \nc) NAF waste rock or other identified capping materials such as clay will be compacted with suitable oxygen diffusion control properties to reduce the minimum encapsulation thickness. \nd) All major earthworks completed. \ne) Landform recontoured to conform with adjacent landforms. \nf) Out-of-pit coal emplacement slopes no greater than 10%, or up to 18.5% where rock mulch or other stabilisation controls are used. \ng) Infrastructure area slope angles do not exceed 5%. \nh) Slopes of >16% have been treated with rock mulch to assist with maintaining slope stability.\ni) Installation of contour or graded drains as per construction design which has been certified by an appropriately qualified person. \nj) Final voids certified by a suitably qualified and experienced person as geotechnically stable.\nk) Final landform is stable and has been certified by an appropriately qualified person. \n\n"]
["RM5","Growth  Medium Application (Surface Preparation and application of ameliorants) ","a) An assessment of soil health and suitability has been completed by an appropriately qualified person to confirm soil is suitable for target vegetation growth. \nb) Waste rock material ripped to a minimum of 300 mm depth via grader tyres or equivalent. \nc) Topsoil/growth medium placed to a minimum depth of 200 mm, to achieve 300 mm of amended subsoil. \nd) Topsoil amelioration and fertilisation process completed to minimise chemical and physical limitations of establishment and growth of vigorous vegetation cover. Approach involves the application of gypsum and organic matter to topsoil and chemical fertiliser (as required) (target Total N: 1,500 milligram [mg] per kg [mg/kg], target phosphate 20 mg/kg). \ne) Topsoil to be ripped with a bullldozer or with tynes spaced at approximately 50 centimetre (cm) centres. \nf) Use of offset disc harrows or similar to harrow gypsum and organic matter into full depth (200 mm) and on the contour. Use of scarifies or harrows (maximum less than 100 mm depth) to apply fertiliser and seed incorporation. \ng) Installation of fencing (if required) completed. \nh) Evidence, certified by an appropriately qualified person, that topsoil/growth medium has been spread to a suitable depth in rehabilitated areas to sustain the post mining land use.\ni) Amelioration of topsoil undertaken to minimise chemical and physical properties limiting establishment and growth of vegetation cover. \nj) For areas < 16 % slope, vertical rills and troughs removed, and topsoil applied to a minimum depth of 0.2 m. \nk) Seed and harrow applied to average depth of approximately 50 mm. \nl) For areas > 16 %, seed over rock mulch applied. \nm) Soil surface crusting occurs in less than 2% of the rehabilitated domain area\n"]
["RM6","Revegetation (mixed use - grazing)","a) Topsoil to be ripped no more than three months after initial placement. \nb) Direct seeding of cover crop and pasture species completed on all rehabilitation areas including creek diversions (seed mix proportions specified in Revegetation Management Plan). \nc) Seed incorporations to a depth of approximately 5 cm to ensure adequate soil moisture is stored before germination is initiated and so that the seed is not penetrated too deep in the soil surface. \nd) Use of tractor drawn, or dozer mounted seeding equipment to sow seed integrated with scarifies, harrows or tracking chains. \ne) Stock fencing to protect early stages of revegetation instalment. \nf) A minimum of 65 % vegetation cover is present, and evidence of generational succession of trees and shrubs is evident. \ng) Bare surface areas are not to exceed 100 m2 in area, and exceed a length of 10 m along slope, based on a five year average period. \n\n"]
["RM7","Revegetation (mixed use - open woodland)","a) Direct seeding of cover crop, pasture species and native vegetation completed (seed mix proportions relevant to grazing and open woodland specified in Revegetation Management Plan). \nb) Seed incorporations to a depth of approximately 5 cm to ensure adequate soil moisture is stored before germination is initiated and so that the seed is not penetrated too deep in the soil surface. \nc) Use of tractor drawn, and dozer mounted seeding equipment to sow seed integrated with scarifies, harrows or tracking chains. \nd) Seed sourced from reputable seed suppliers with documented quality control procedures.\ne) Stock fencing to protect early stages of revegetation instalment.\nf) Germination and purity visual inspections by a certified professional undertaken (e.g. agronomist or reputable seed supplier).  \ng) Topsoil ripped no more than three months later than placement. \nh) Till along the contour with a tyned implement with tyne spacing no greater than 0.5m. \ni) Non-vegetation cover (stones, rock cover, litter, logs etc) does not cover greater than 30% of the total area. \nj)  A minimum of 65% vegetation cover is present, and evidence of generational succession of trees and shrubs is apparent in rehabilitated areas.\nk) Pasture grass and woodland species are comparable in cover to designated vegetation reference sites. \n\n"]
["RM8","Surface Conditions","a) No evidence of slumping and erosion maintenance requirements are comparable to designated vegetation reference sites, for a period of at least five years post-mining. \nb) Hydraulic and geomorphic characteristics of rehabilitated portions of Roper Creek (Diversion 1 and 2), and Thirteen Mile Gully (Diversion) reviewed by a suitably certified person and confirmed that it is trending towards the hydraulic and geomorphic characteristics of undisturbed sections of Roper Creek and Thirteen Mile Gully channels.\nc) Target ranges for chemical and physico-chemical nutrients are considered to be at levels in which plant nutrient deficiencies are relieved and plant growth is encouraged (refer to Revegetation Management Plan). \nd) Hydrocarbon, heavy metals or other contamination levels are within appropriate DES limits.\n\n"]
["RM9","Achievement of PMLU to Stable Condition (mixed use- grazing)","Safe: \na) Certification that slopes are safe and predicted to remain safe. \nb) Certification that the relevant specified cover thickness has been obtained. \nc) Evidence that any site contamination has been resolved and relevant measures implemented, resulting in removal of the site from the Environmental Management Register (if required). \nd) Receiving water system water quality monitoring results comply with EA EPML 00716913 or are comparable with upstream values, for an ongoing period of time. \ne) A Bushfire Management Plan developed in accordance with relevant Queensland Fire and Emergency Services is in place. \nStable: \nf) Active erosion (t/ha/year) is less than 110% of the levels present in designated vegetation reference sites. \ng) Erosion maintenance requirements are comparable to designated vegetation reference sites, for a period of at least five years post-mining. \nh) No evidence of severe erosion \ni) Persistent groundcover greater than or equal to 65% established as assessed against comparable reference sites. \nj) Evidence of effective pest management with pest species abundance being comparable to designated vegetation reference sites. \nk) Evidence of effective weed management with weed diversity and density being less than 110 % of baseline survey results and abundance being comparable to designated vegetation reference sites. \nSelf-sustaining land use:\nl) Meets land suitability class 3  for beef cattle grazing. \nm) Assessed hypothetical stocking rates in rehabilitated pasture areas are comparable to designated vegetation reference sites.\nn) Pasture grass species are comparable in cover and composition to designated vegetation reference sites. \no) Pasture grass species show evidence of seed set, germination and emergence.\np) Salinity levels of less than 0.6 dS/m in soil root zone or less than 110 % of designated vegetation reference sites. \nq) Cation exchange capacity levels are greater than 8 to 10 in soil root zone or less than 110 % of designated vegetation reference sites.\nNon-polluting:\nr) Hydrocarbon, heavy metal or other contamination levels are within relevant DES limits. \ns) Receiving water system water quality monitoring results comply with EA EPML00716913 or are comparable with upstream values, for an ongoing period of time. \nt) Groundwater quality monitoring results comply with EA EPML00716913, for an ongoing period of time. \n\n\n"]
["RM10","Achievement of PMLU to Stable Condition (mixed use - open woodland)","Safe:\na) Certification that slopes are safe, and predicted to remain safe.\nb) Certification that the relevant specified cover thickness has been obtained.\nc) Evidence that any site contamination has been resolved and relevant measures implemented, resulting in removal of the site from the Environmental Management Register (if required).\nd) A Bushfire Management Plan developed in accordance with relevant Queensland Fire and Emergency Services is in place. \nStable:\ne) Rehabilitation area has remained stable when comparing photographs from successive monitoring events, for a period of at least five years post-mining. \nf) Active erosion (t/ha/year) is less than 110% of the levels present in designated vegetation reference sites. \ng) Erosion maintenance requirements are comparable to designated vegetation reference sites, for a period of at least five years post-mining. \nh) Nutrient cycling processes are comparable to designated reference sites which are representative of the PMLU. \ni) Pest species abundance comparable to designated reference sites. \nj) Weed diversity and density less than 110% of the levels present in the designated reference sites, for a period of at least two years.\nk) Vegetative material layer(s) (e.g. leaf litter) is evident and contributing to nutrient cycling and development of microbial mass.\nl) Hydraulic and geomorphic characteristics of rehabilitated portions of Roper Creek (Diversion 1 and 2), and Thirteen Mile Gully (Diversion) reviewed by a suitably certified person and confirmed that it is trending towards the hydraulic and geomorphic characteristics of undisturbed sections of Roper Creek and Thirteen Mile Gully channels.\nSelf-sustaining land use:\nm) Assessed hypothetical stocking rates in rehabilitated woodland areas are comparable to designated vegetation reference sites.\nn) Litter density comparable to vegetation designated vegetation reference sites. \no) Declared weed species cover is comparable to designated vegetation reference sites. \np) Tree and shrub species are comparable to designated vegetation reference sites. \nq) Tree and shrub species show evidence of flowering, viable seed setting, germination and emergence. \nr) Persistent groundcover greater than or equal to 65 % as assessed against comparable reference sites.  \nNon-polluting:\ns) Hydrocarbon, heavy metal or other contamination levels are within relevant DES limits. \nt) Receiving water system water quality monitoring results comply with EA EPML00716913 or are comparable with upstream values, for an ongoing period of time. \nu) Groundwater quality monitoring results comply with EA EPML00716913, for an ongoing period of time.\n\n"]
["RM11","Retained Water Structures","Stable:\na) Certification of structural integrity.\nb) Water quality within the retained water structures is comparable with upstream values. \nNon-polluting: \nc) Water quality monitoring results comply with EA EMPL00716913 for an ongoing period of time. \n\n"]
[]
["1) Insert new rows below the table to record more Rehabilitation Area Milestones for the project"]
["2) Ensure all Rehabiitation Milestones recorded in this table align with those included in the RA sheets in this form."]
["3) See the PRCP guideline before developing site-specific Rehabilitation Area Milestones"]

{"sheet":"IA1","index":18,"n_rows":19,"n_cols":2,"rows_kept":19,"cut":false,"hidden":false,"merged":[[16,0,16,10],[17,0,17,10],[18,0,18,10],[15,0,15,10]]}
["Non-use management area (NUMA)"]
["Improvement area","IA1"]
["Relevant activities","Northern Void "]
["Total size (ha)",358]
["Commencement of first milestone: \nMM1",2044]
["NUMA","Final Residual Void"]
["Date area is available","2044-12-10"]
["Cumulative area available (ha)",{"$f":"'[1]Full Schedule'!AF182","v":358}]
["Milestone completed by","2049-12-10"]
["Milestone Reference","Cumulative area achieved (ha)"]
["MM1",{"$f":"'[1]Full Schedule'!AF183","v":358}]
["MM2",{"$f":"'[1]Full Schedule'!AF184","v":358}]
["MM3",{"$f":"'[1]Full Schedule'!AF185","v":358}]
[]
[]
["1) Insert new columns to the yellow table to include further management milestone dates."]
["2) Insert new columns to the blue table to match management milestone dates."]
["3) Insert new rows to the blue table to include additional management milestone references."]
["4) Insert the relevant number in the \"Milestone reference\" column (i.e. MM1)."]

{"sheet":"IA2","index":19,"n_rows":19,"n_cols":2,"rows_kept":19,"cut":false,"hidden":false,"merged":[[16,0,16,10],[17,0,17,10],[18,0,18,10],[15,0,15,10]]}
["Non-use management area (NUMA)"]
["Improvement area","IA2"]
["Relevant activities","Southern Void "]
["Total size (ha)",163]
["Commencement of first milestone: \nMM1",2044]
["NUMA","Final Residual Void"]
["Date area is available","2044-12-10"]
["Cumulative area available (ha)",{"$f":"'[1]Full Schedule'!AF193","v":163}]
["Milestone completed by","2093-12-10"]
["Milestone Reference","Cumulative area achieved (ha)"]
["MM1",{"$f":"'[1]Full Schedule'!AF194","v":163}]
["MM2",{"$f":"'[1]Full Schedule'!AF195","v":163}]
["MM3",{"$f":"'[1]Full Schedule'!AF196","v":163}]
[]
[]
["1) Insert new columns to the yellow table to include further management milestone dates."]
["2) Insert new columns to the blue table to match management milestone dates."]
["3) Insert new rows to the blue table to include additional management milestone references."]
["4) Insert the relevant number in the \"Milestone reference\" column (i.e. MM1)."]

{"sheet":"Improvement Area Milestones","index":20,"n_rows":9,"n_cols":3,"rows_kept":9,"cut":false,"hidden":false,"merged":[[6,0,6,2],[7,0,7,2],[8,0,8,2]]}
["Milestone reference","Management milestone","Milestone criteria"]
["MM1","Highwall treatment","a) Certification from an appropriately qualified and experienced person that the final voids are safe. \nb) Highwall competent rock slopes are no greater than 59°, and incompetent slopes no greater than 36°. \nc) Low wall slopes no greater than 30°. \nd) Low and high walls certified by a suitably qualified and experienced person as geotechnically stable. \ne) Slope geometry for the final voids is as follows: \ni. Surficial Soils\n- Overall slope angle does not exceed 20 degrees \nii. Weathered Permian \n- Bench height does not exceed 30 m. \n- Berm width does not exceed 25 m \n- Batter Angle does not exceed 55 degrees. \niii. Fresh Permian\n- Bench height does not exceed 60 m \n- Berm width does not exceed 60 m \n- Batter angle does not exceed 60 degrees. \nf) Northern Void does not exceed 358 ha in surface area and 285,870,000 m3 in volume. \ng) Southern void does not exceed 163 ha in surface area and 157,960,000 m3 in volume. \n\n"]
["MM2","Achievement of surface requirements","a) Access is prohibited to final voids by a bund wall with a minimum height of 2 m, a minimum base width of 4 m and be located at least 10 m beyond the area potentially affected by any instability of the pit edge. \nb) Appropriate signage placed to clearly identify and convey the purpose (e.g. EP Act 1994 Non- Use Management Area No Entry).\n"]
["MM3","Achievement of sufficient improvement","a) Bund wall remains in place.\nb) Appropriate signage remains in place.\nc) Final voids remain structurally stable, with no maintenance requirements and are predicted to remain stable.\nd) High walls and low walls certified by a suitably qualified and experienced person as geotechnically stable. \ne) Groundwater quality monitoring results comply with EA EPML00716913, ongoing and for a period of at least two years.\nf) Final void walls confirmed to drain internally to the final void.\ng) Review of final void water recovery confirms the void is predicted to act as a long-term groundwater sink.\n\n"]
[]
[]
["1) Insert new rows below the table to record more Improvement Area Milestones for the project"]
["2) Ensure all Management Milestones recorded in this table align with those included in the IA sheets in this form."]
["3) See the PRCP guideline before developing site-specific Improvement Area Milestones"]